[Event "Titled Tuesday Blitz February 14 Early 2023"]
[White "Hrabinska, Myroslava"]
[Black "Grunberg, Mihai-Lucian"]
[WhiteFideId "14109190"]
[BlackFideId "1204149"]
[WhiteElo "2210"]
[BlackElo "2401"]
[Result "0-1"]
[Round "03"]
[TimeControl "180+2"]
[Date "2023.02.15"]
[WhiteClock "0:00:16"]
[BlackClock "0:01:43"]

1. e4 {[%clk 0:02:59]}  c5 {[%clk 0:03:00]} 2. b4 {[%clk 0:02:57]}  b6 {[%clk 0:02:57]} 3. bxc5 {[%clk 0:02:54]}  bxc5 {[%clk 0:02:57]} 4. Nc3 {[%clk 0:02:54]}  Nc6 {[%clk 0:02:57]} 5. Rb1 {[%clk 0:02:49]}  g6 {[%clk 0:02:57]} 6. Nf3 {[%clk 0:02:46]}  Bg7 {[%clk 0:02:56]} 7. Bc4 {[%clk 0:02:43]}  Nf6 {[%clk 0:02:56]} 8. O-O {[%clk 0:01:48]}  O-O {[%clk 0:02:55]} 9. Re1 {[%clk 0:01:42]}  d6 {[%clk 0:02:52]} 10. d4 {[%clk 0:01:39]}  cxd4 {[%clk 0:02:35]} 11. Nxd4 {[%clk 0:01:38]}  Bd7 {[%clk 0:02:30]} 12. Nf3 {[%clk 0:01:16]}  Rc8 {[%clk 0:02:19]} 13. Ba6 {[%clk 0:01:11]}  Rb8 {[%clk 0:02:19]} 14. Rb3 {[%clk 0:00:57]}  Qa5 {[%clk 0:02:14]} 15. Bc4 {[%clk 0:00:49]}  Rxb3 {[%clk 0:02:12]} 16. axb3 {[%clk 0:00:45]}  Qxc3 {[%clk 0:02:12]} 17. Be3 {[%clk 0:00:33]}  Ng4 {[%clk 0:02:07]} 18. Bg5 {[%clk 0:00:29]}  Nge5 {[%clk 0:01:58]} 19. Nxe5 {[%clk 0:00:23]}  Qxe5 {[%clk 0:01:56]} 20. Bh4 {[%clk 0:00:20]}  Qd4 {[%clk 0:01:52]} 21. Qe2 {[%clk 0:00:19]}  Ne5 {[%clk 0:01:49]} 22. Bd5 {[%clk 0:00:17]}  e6 {[%clk 0:01:47]} 23. Bc4 {[%clk 0:00:15]}  Nxc4 {[%clk 0:01:46]} 24. bxc4 {[%clk 0:00:16]}  Rc8 {[%clk 0:01:43]} 0-1


[Site "https://www.chess.com"]

[Event "Titled Tuesday Blitz February 14 Early 2023"]
[White "Mendez Machado, Andre"]
[Black "Ansh M Shah"]
[WhiteFideId "6603793"]
[BlackFideId "25033379"]
[WhiteElo "1974"]
[BlackElo "2171"]
[Result "0-1"]
[Round "03"]
[TimeControl "180+2"]
[Date "2023.02.15"]
[WhiteClock "0:00:03"]
[BlackClock "0:00:20"]

1. e4 {[%clk 0:02:56]}  c6 {[%clk 0:02:56]} 2. d4 {[%clk 0:02:56]}  d5 {[%clk 0:02:57]} 3. f3 {[%clk 0:02:56]}  dxe4 {[%clk 0:02:51]} 4. fxe4 {[%clk 0:02:57]}  e5 {[%clk 0:02:51]} 5. Nf3 {[%clk 0:02:57]}  Bg4 {[%clk 0:02:51]} 6. Bc4 {[%clk 0:02:53]}  Nd7 {[%clk 0:02:52]} 7. O-O {[%clk 0:02:49]}  Ngf6 {[%clk 0:02:51]} 8. c3 {[%clk 0:02:46]}  Bd6 {[%clk 0:02:51]} 9. Qb3 {[%clk 0:02:40]}  O-O {[%clk 0:02:51]} 10. Qxb7 {[%clk 0:02:24]}  Bxf3 {[%clk 0:01:58]} 11. gxf3 {[%clk 0:02:12]}  Rb8 {[%clk 0:01:59]} 12. Qxc6 {[%clk 0:01:54]}  exd4 {[%clk 0:01:57]} 13. Qxd6 {[%clk 0:01:50]}  dxc3 {[%clk 0:01:47]} 14. Nxc3 {[%clk 0:01:47]}  Rb6 {[%clk 0:01:48]} 15. Qd1 {[%clk 0:01:18]}  Qb8 {[%clk 0:01:43]} 16. f4 {[%clk 0:01:06]}  Rb4 {[%clk 0:01:41]} 17. Bd5 {[%clk 0:00:58]}  Nxd5 {[%clk 0:01:39]} 18. Qxd5 {[%clk 0:00:55]}  Nf6 {[%clk 0:01:37]} 19. Qe5 {[%clk 0:00:49]}  Qb6+ {[%clk 0:01:33]} 20. Kh1 {[%clk 0:00:48]}  Re8 {[%clk 0:01:33]} 21. Nd5 {[%clk 0:00:39]}  Rxe5 {[%clk 0:01:01]} 22. Nxb6 {[%clk 0:00:39]}  Rexe4 {[%clk 0:01:02]} 23. Nc8 {[%clk 0:00:38]}  Re2 {[%clk 0:00:52]} 24. h3 {[%clk 0:00:23]}  Rc4 {[%clk 0:00:43]} 25. Nd6 {[%clk 0:00:17]}  Rcc2 {[%clk 0:00:42]} 26. Rd1 {[%clk 0:00:11]}  g6 {[%clk 0:00:30]} 27. Nb5 {[%clk 0:00:08]}  Rh2+ {[%clk 0:00:23]} 28. Kg1 {[%clk 0:00:08]}  Rcg2+ {[%clk 0:00:24]} 29. Kf1 {[%clk 0:00:08]}  Ne4 {[%clk 0:00:25]} 30. Be3 {[%clk 0:00:05]}  Ng3+ {[%clk 0:00:19]} 31. Ke1 {[%clk 0:00:03]}  Rh1+ {[%clk 0:00:20]} 0-1


[Site "https://www.chess.com"]

[Event "Titled Tuesday Blitz February 14 Early 2023"]
[White "Dylag, Emilia"]
[Black "Silvestre, Christian"]
[WhiteFideId "21805172"]
[BlackFideId "30956269"]
[WhiteElo "2095"]
[BlackElo "1942"]
[Result "0-1"]
[Round "03"]
[TimeControl "180+2"]
[Date "2023.02.15"]
[WhiteClock "0:00:07"]
[BlackClock "0:00:09"]

1. d4 {[%clk 0:03:00]}  e5 {[%clk 0:02:59]} 2. dxe5 {[%clk 0:02:58]}  Nc6 {[%clk 0:02:59]} 3. Nf3 {[%clk 0:02:57]}  Qe7 {[%clk 0:03:00]} 4. Qd5 {[%clk 0:02:52]}  Nb4 {[%clk 0:02:36]} 5. Qc4 {[%clk 0:02:38]}  b5 {[%clk 0:02:28]} 6. Qb3 {[%clk 0:02:32]}  Rb8 {[%clk 0:02:01]} 7. Bf4 {[%clk 0:02:26]}  a5 {[%clk 0:01:59]} 8. c3 {[%clk 0:02:23]}  Nc6 {[%clk 0:01:58]} 9. e3 {[%clk 0:02:20]}  h6 {[%clk 0:01:57]} 10. Be2 {[%clk 0:02:18]}  g5 {[%clk 0:01:57]} 11. Bg3 {[%clk 0:02:16]}  g4 {[%clk 0:01:57]} 12. Nd4 {[%clk 0:02:09]}  Nxe5 {[%clk 0:01:56]} 13. O-O {[%clk 0:02:04]}  d6 {[%clk 0:01:55]} 14. Nd2 {[%clk 0:01:54]}  Bd7 {[%clk 0:01:50]} 15. Qc2 {[%clk 0:01:01]}  c5 {[%clk 0:01:47]} 16. Nf5 {[%clk 0:00:57]}  Qf6 {[%clk 0:01:45]} 17. e4 {[%clk 0:00:50]}  Ne7 {[%clk 0:01:38]} 18. Bh4 {[%clk 0:00:46]}  Qg6 {[%clk 0:01:35]} 19. Nxe7 {[%clk 0:00:37]}  Bxe7 {[%clk 0:01:36]} 20. Bxe7 {[%clk 0:00:35]}  Kxe7 {[%clk 0:01:37]} 21. f4 {[%clk 0:00:34]}  gxf3 {[%clk 0:01:37]} 22. Nxf3 {[%clk 0:00:33]}  Rhg8 {[%clk 0:01:25]} 23. Bd1 {[%clk 0:00:27]}  Ng4 {[%clk 0:01:25]} 24. Qd2 {[%clk 0:00:24]}  Bc6 {[%clk 0:01:15]} 25. h3 {[%clk 0:00:22]}  Ne3 {[%clk 0:01:07]} 26. Rf2 {[%clk 0:00:20]}  Nc4 {[%clk 0:00:57]} 27. Qe2 {[%clk 0:00:19]}  Qxe4 {[%clk 0:00:53]} 28. Qf1 {[%clk 0:00:19]}  Kd7 {[%clk 0:00:50]} 29. Bc2 {[%clk 0:00:16]}  Qe7 {[%clk 0:00:32]} 30. Rd1 {[%clk 0:00:16]}  Kc7 {[%clk 0:00:30]} 31. Re1 {[%clk 0:00:16]}  Qd7 {[%clk 0:00:26]} 32. Qe2 {[%clk 0:00:15]}  Qxh3 {[%clk 0:00:21]} 33. b3 {[%clk 0:00:11]}  Ne5 {[%clk 0:00:17]} 34. Nxe5 {[%clk 0:00:09]}  dxe5 {[%clk 0:00:18]} 35. Be4 {[%clk 0:00:09]}  Bxe4 {[%clk 0:00:16]} 36. Qxe4 {[%clk 0:00:10]}  Qg3 {[%clk 0:00:15]} 37. Qxe5+ {[%clk 0:00:08]}  Qxe5 {[%clk 0:00:16]} 38. Rxe5 {[%clk 0:00:09]}  Kd6 {[%clk 0:00:16]} 39. Ref5 {[%clk 0:00:08]}  Rb7 {[%clk 0:00:16]} 40. Rf6+ {[%clk 0:00:09]}  Ke5 {[%clk 0:00:14]} 41. Rxh6 {[%clk 0:00:10]}  Rg6 {[%clk 0:00:13]} 42. Rh5+ {[%clk 0:00:11]}  Ke6 {[%clk 0:00:12]} 43. Rh3 {[%clk 0:00:12]}  Kd6 {[%clk 0:00:12]} 44. Re3 {[%clk 0:00:13]}  Re6 {[%clk 0:00:11]} 45. Rd2+ {[%clk 0:00:13]}  Kc6 {[%clk 0:00:12]} 46. Rf3 {[%clk 0:00:14]}  Rd7 {[%clk 0:00:12]} 47. Rdf2 {[%clk 0:00:14]}  Ree7 {[%clk 0:00:11]} 48. g3 {[%clk 0:00:15]}  c4 {[%clk 0:00:10]} 49. Kg2 {[%clk 0:00:15]}  Rd3 {[%clk 0:00:09]} 50. bxc4 {[%clk 0:00:15]}  bxc4 {[%clk 0:00:09]} 51. Rf4 {[%clk 0:00:14]}  Kc5 {[%clk 0:00:09]} 52. Rf5+ {[%clk 0:00:14]}  Rd5 {[%clk 0:00:09]} 53. R5f3 {[%clk 0:00:14]}  Re4 {[%clk 0:00:09]} 54. Rb2 {[%clk 0:00:14]}  Rd3 {[%clk 0:00:09]} 55. Rb7 {[%clk 0:00:12]}  Re2+ {[%clk 0:00:08]} 56. Rf2 {[%clk 0:00:13]}  Rxf2+ {[%clk 0:00:08]} 57. Kxf2 {[%clk 0:00:14]}  Rd2+ {[%clk 0:00:08]} 58. Ke1 {[%clk 0:00:13]}  Rxa2 {[%clk 0:00:09]} 59. Rxf7 {[%clk 0:00:13]}  Rg2 {[%clk 0:00:09]} 60. Rg7 {[%clk 0:00:12]}  Kb5 {[%clk 0:00:09]} 61. g4 {[%clk 0:00:11]}  a4 {[%clk 0:00:09]} 62. g5 {[%clk 0:00:12]}  a3 {[%clk 0:00:10]} 63. Ra7 {[%clk 0:00:12]}  a2 {[%clk 0:00:10]} 64. Kf1 {[%clk 0:00:12]}  Rb2 {[%clk 0:00:08]} 65. g6 {[%clk 0:00:08]}  Rb1+ {[%clk 0:00:07]} 66. Kf2 {[%clk 0:00:08]}  a1=Q {[%clk 0:00:08]} 67. Rxa1 {[%clk 0:00:07]}  Rxa1 {[%clk 0:00:09]} 68. g7 {[%clk 0:00:07]}  Ra8 {[%clk 0:00:09]} 0-1


[Site "https://www.chess.com"]

[Event "Titled Tuesday Blitz February 14 Early 2023"]
[White "Boder, Jan"]
[Black "SicilianPanzer"]
[WhiteFideId "16243226"]
[WhiteElo "2294"]
[BlackElo "2240"]
[Result "0-1"]
[Round "03"]
[TimeControl "180+2"]
[Date "2023.02.15"]
[WhiteClock "0:00:12"]
[BlackClock "0:00:03"]

1. c4 {[%clk 0:02:59]}  e6 {[%clk 0:02:59]} 2. g3 {[%clk 0:02:58]}  Nf6 {[%clk 0:02:53]} 3. Bg2 {[%clk 0:02:59]}  a6 {[%clk 0:02:51]} 4. Nf3 {[%clk 0:03:00]}  b5 {[%clk 0:02:50]} 5. O-O {[%clk 0:03:01]}  Bb7 {[%clk 0:02:47]} 6. Qb3 {[%clk 0:02:49]}  Be7 {[%clk 0:02:20]} 7. cxb5 {[%clk 0:02:48]}  axb5 {[%clk 0:02:19]} 8. Qxb5 {[%clk 0:02:41]}  Ba6 {[%clk 0:02:16]} 9. Qb3 {[%clk 0:02:18]}  Bxe2 {[%clk 0:02:11]} 10. Re1 {[%clk 0:02:14]}  Ba6 {[%clk 0:02:06]} 11. Ne5 {[%clk 0:02:07]}  Ra7 {[%clk 0:02:03]} 12. d4 {[%clk 0:02:06]}  O-O {[%clk 0:02:00]} 13. Nc3 {[%clk 0:02:05]}  d6 {[%clk 0:01:49]} 14. Nf3 {[%clk 0:01:39]}  d5 {[%clk 0:01:38]} 15. Ne5 {[%clk 0:01:38]}  c5 {[%clk 0:01:15]} 16. Be3 {[%clk 0:01:35]}  Rb7 {[%clk 0:01:02]} 17. Qc2 {[%clk 0:01:35]}  cxd4 {[%clk 0:01:01]} 18. Bxd4 {[%clk 0:01:35]}  Qd6 {[%clk 0:00:52]} 19. a3 {[%clk 0:01:25]}  Nc6 {[%clk 0:00:33]} 20. Nxc6 {[%clk 0:01:16]}  Qxc6 {[%clk 0:00:34]} 21. b4 {[%clk 0:01:12]}  Rc8 {[%clk 0:00:25]} 22. Rac1 {[%clk 0:01:11]}  Bc4 {[%clk 0:00:21]} 23. Qb2 {[%clk 0:01:10]}  Rcb8 {[%clk 0:00:12]} 24. Nd1 {[%clk 0:00:59]}  Qa4 {[%clk 0:00:11]} 25. Ne3 {[%clk 0:00:58]}  Bd3 {[%clk 0:00:05]} 26. Be5 {[%clk 0:00:50]}  Ra8 {[%clk 0:00:05]} 27. Rc3 {[%clk 0:00:44]}  Be4 {[%clk 0:00:05]} 28. Rec1 {[%clk 0:00:44]}  Bxg2 {[%clk 0:00:03]} 29. Rc8+ {[%clk 0:00:43]}  Rxc8 {[%clk 0:00:03]} 30. Rxc8+ {[%clk 0:00:44]}  Bf8 {[%clk 0:00:03]} 31. Kxg2 {[%clk 0:00:27]}  Qd7 {[%clk 0:00:02]} 32. Ra8 {[%clk 0:00:24]}  d4 {[%clk 0:00:03]} 33. Qxd4 {[%clk 0:00:22]}  Qc6+ {[%clk 0:00:02]} 34. Kg1 {[%clk 0:00:18]}  Rd7 {[%clk 0:00:02]} 35. Qb2 {[%clk 0:00:12]}  Qxa8 {[%clk 0:00:02]} 36. Bxf6 {[%clk 0:00:11]}  gxf6 {[%clk 0:00:03]} 37. Qxf6 {[%clk 0:00:11]}  Bg7 {[%clk 0:00:03]} 38. Qg5 {[%clk 0:00:10]}  Qxa3 {[%clk 0:00:03]} 39. h4 {[%clk 0:00:09]}  Qa1+ {[%clk 0:00:03]} 40. Kh2 {[%clk 0:00:10]}  Rd2 {[%clk 0:00:02]} 41. Qf4 {[%clk 0:00:09]}  Qf6 {[%clk 0:00:02]} 42. Qxf6 {[%clk 0:00:09]}  Bxf6 {[%clk 0:00:02]} 43. Ng4 {[%clk 0:00:10]}  Bg7 {[%clk 0:00:02]} 44. Kg2 {[%clk 0:00:10]}  h5 {[%clk 0:00:02]} 45. Nh2 {[%clk 0:00:09]}  Rb2 {[%clk 0:00:03]} 46. b5 {[%clk 0:00:09]}  Rxb5 {[%clk 0:00:03]} 47. Nf3 {[%clk 0:00:10]}  Kh7 {[%clk 0:00:03]} 48. Ng5+ {[%clk 0:00:10]}  Kg6 {[%clk 0:00:04]} 49. Nh3 {[%clk 0:00:10]}  Bh6 {[%clk 0:00:04]} 50. Kf3 {[%clk 0:00:10]}  e5 {[%clk 0:00:05]} 51. Ke4 {[%clk 0:00:11]}  Kf6 {[%clk 0:00:04]} 52. f3 {[%clk 0:00:10]}  Ke6 {[%clk 0:00:04]} 53. Nf2 {[%clk 0:00:09]}  f5+ {[%clk 0:00:04]} 54. Kd3 {[%clk 0:00:09]}  Rb2 {[%clk 0:00:05]} 55. Nh3 {[%clk 0:00:08]}  Rh2 {[%clk 0:00:04]} 56. Ng1 {[%clk 0:00:08]}  Rg2 {[%clk 0:00:04]} 57. Ne2 {[%clk 0:00:08]}  Rxe2 {[%clk 0:00:04]} 58. Kxe2 {[%clk 0:00:09]}  Kd5 {[%clk 0:00:04]} 59. Kd3 {[%clk 0:00:09]}  e4+ {[%clk 0:00:04]} 60. fxe4+ {[%clk 0:00:10]}  fxe4+ {[%clk 0:00:04]} 61. Ke2 {[%clk 0:00:11]}  Ke5 {[%clk 0:00:05]} 62. Kf2 {[%clk 0:00:12]}  Kf5 {[%clk 0:00:05]} 63. Ke2 {[%clk 0:00:12]}  Kg4 {[%clk 0:00:05]} 64. Kf2 {[%clk 0:00:13]}  e3+ {[%clk 0:00:05]} 65. Kg2 {[%clk 0:00:13]}  Bg7 {[%clk 0:00:04]} 66. Kh2 {[%clk 0:00:13]}  Bc3 {[%clk 0:00:04]} 67. Kg2 {[%clk 0:00:11]}  e2 {[%clk 0:00:04]} 68. Kh2 {[%clk 0:00:10]}  e1=Q {[%clk 0:00:04]} 69. Kg2 {[%clk 0:00:11]}  Qxg3+ {[%clk 0:00:04]} 70. Kh1 {[%clk 0:00:11]}  Qe1+ {[%clk 0:00:03]} 71. Kg2 {[%clk 0:00:10]}  Qe2+ {[%clk 0:00:03]} 72. Kh1 {[%clk 0:00:11]}  Kg3 {[%clk 0:00:02]} 73. Kg1 {[%clk 0:00:12]}  Qg2# {[%clk 0:00:03]} 0-1


[Site "https://www.chess.com"]

[Event "Titled Tuesday Blitz February 14 Early 2023"]
[White "Topalov, Aleksandar"]
[Black "Smietanska, Wiktoria"]
[WhiteFideId "925659"]
[BlackFideId "21869359"]
[WhiteElo "2233"]
[BlackElo "1936"]
[Result "0-1"]
[Round "03"]
[TimeControl "180+2"]
[Date "2023.02.15"]
[WhiteClock "0:02:06"]
[BlackClock "0:00:48"]

1. b3 {[%clk 0:03:00]}  e5 {[%clk 0:02:59]} 2. Bb2 {[%clk 0:03:01]}  Nc6 {[%clk 0:02:59]} 3. c4 {[%clk 0:03:01]}  Nf6 {[%clk 0:02:54]} 4. e3 {[%clk 0:03:01]}  d5 {[%clk 0:02:54]} 5. cxd5 {[%clk 0:03:00]}  Nxd5 {[%clk 0:02:55]} 6. a3 {[%clk 0:02:59]}  Be6 {[%clk 0:02:53]} 7. Qc2 {[%clk 0:02:59]}  Qd7 {[%clk 0:02:35]} 8. Nf3 {[%clk 0:02:55]}  Bd6 {[%clk 0:02:34]} 9. d3 {[%clk 0:02:39]}  O-O {[%clk 0:02:16]} 10. Nbd2 {[%clk 0:02:38]}  a5 {[%clk 0:01:59]} 11. Be2 {[%clk 0:02:37]}  Rad8 {[%clk 0:01:39]} 12. O-O {[%clk 0:02:36]}  f6 {[%clk 0:01:20]} 13. Rfd1 {[%clk 0:02:36]}  Qe7 {[%clk 0:01:17]} 14. Ne4 {[%clk 0:02:29]}  Bf7 {[%clk 0:01:03]} 15. Ng3 {[%clk 0:02:24]}  Bc5 {[%clk 0:00:58]} 16. d4 {[%clk 0:02:10]}  exd4 {[%clk 0:00:55]} 17. Nxd4 {[%clk 0:02:08]}  Nxd4 {[%clk 0:00:53]} 18. Bxd4 {[%clk 0:02:08]}  Bxd4 {[%clk 0:00:52]} 19. Rxd4 {[%clk 0:02:06]}  Nxe3 {[%clk 0:00:48]} 0-1


[Site "https://www.chess.com"]

[Event "Titled Tuesday Blitz February 14 Early 2023"]
[White "Avazkhonov, Alikhon"]
[Black "Korpics, Zsolt"]
[WhiteFideId "14208504"]
[BlackFideId "705241"]
[WhiteElo "1538"]
[BlackElo "2300"]
[Result "1-0"]
[Round "03"]
[TimeControl "180+2"]
[Date "2023.02.15"]
[WhiteClock "0:01:25"]
[BlackClock "0:01:06"]

1. d4 {[%clk 0:02:55]}  Nf6 {[%clk 0:03:00]} 2. c4 {[%clk 0:02:55]}  e6 {[%clk 0:03:00]} 3. Nc3 {[%clk 0:02:51]}  Bb4 {[%clk 0:02:59]} 4. e3 {[%clk 0:02:51]}  O-O {[%clk 0:02:58]} 5. Bd2 {[%clk 0:02:51]}  c5 {[%clk 0:02:49]} 6. a3 {[%clk 0:02:49]}  Bxc3 {[%clk 0:02:49]} 7. Bxc3 {[%clk 0:02:50]}  Ne4 {[%clk 0:02:47]} 8. Ne2 {[%clk 0:02:51]}  d5 {[%clk 0:02:44]} 9. cxd5 {[%clk 0:02:48]}  Qxd5 {[%clk 0:02:10]} 10. Rc1 {[%clk 0:02:23]}  Nc6 {[%clk 0:01:58]} 11. dxc5 {[%clk 0:02:04]}  Qxd1+ {[%clk 0:01:42]} 12. Rxd1 {[%clk 0:01:55]}  Nxc5 {[%clk 0:01:41]} 13. Nd4 {[%clk 0:01:55]}  Bd7 {[%clk 0:01:13]} 14. Bc4 {[%clk 0:01:30]}  Ne4 {[%clk 0:01:11]} 15. Nxc6 {[%clk 0:01:26]}  Bxc6 {[%clk 0:01:12]} 16. Bb4 {[%clk 0:01:25]}  Rfd8 {[%clk 0:01:06]} 17. O-O {[%clk 0:01:25]} 1-0


[Site "https://www.chess.com"]

[Event "Titled Tuesday Blitz February 14 Early 2023"]
[White "I_KID_you_not"]
[Black "Thiel, Thomas"]
[BlackFideId "4615964"]
[WhiteElo "2323"]
[BlackElo "2234"]
[Result "0-1"]
[Round "03"]
[TimeControl "180+2"]
[Date "2023.02.15"]
[WhiteClock "0:00:11"]
[BlackClock "0:01:16"]

1. e4 {[%clk 0:03:00]}  d5 {[%clk 0:02:58]} 2. exd5 {[%clk 0:03:00]}  Nf6 {[%clk 0:02:58]} 3. Bb5+ {[%clk 0:03:00]}  Nbd7 {[%clk 0:02:56]} 4. c4 {[%clk 0:02:59]}  a6 {[%clk 0:02:55]} 5. Bxd7+ {[%clk 0:02:57]}  Qxd7 {[%clk 0:02:56]} 6. d3 {[%clk 0:02:53]}  e6 {[%clk 0:02:56]} 7. dxe6 {[%clk 0:02:53]}  Qxe6+ {[%clk 0:02:56]} 8. Qe2 {[%clk 0:02:53]}  b5 {[%clk 0:02:55]} 9. Nc3 {[%clk 0:02:45]}  Bb4 {[%clk 0:02:50]} 10. Bd2 {[%clk 0:02:44]}  O-O {[%clk 0:02:44]} 11. Qxe6 {[%clk 0:02:36]}  Bxe6 {[%clk 0:02:45]} 12. cxb5 {[%clk 0:02:36]}  axb5 {[%clk 0:02:42]} 13. Nxb5 {[%clk 0:02:36]}  Rfe8 {[%clk 0:02:08]} 14. Bxb4 {[%clk 0:01:48]}  Bc4+ {[%clk 0:02:06]} 15. Ne2 {[%clk 0:01:45]}  Bxb5 {[%clk 0:02:06]} 16. Kd2 {[%clk 0:01:44]}  Rad8 {[%clk 0:02:03]} 17. Nf4 {[%clk 0:00:56]}  g5 {[%clk 0:02:01]} 18. Bc3 {[%clk 0:00:56]}  Ne4+ {[%clk 0:01:59]} 19. Kc2 {[%clk 0:00:50]}  Nxc3 {[%clk 0:01:57]} 20. bxc3 {[%clk 0:00:49]}  gxf4 {[%clk 0:01:57]} 21. c4 {[%clk 0:00:49]}  Bc6 {[%clk 0:01:56]} 22. Rhe1 {[%clk 0:00:48]}  Bxg2 {[%clk 0:01:53]} 23. Kc3 {[%clk 0:00:45]}  Kf8 {[%clk 0:01:47]} 24. a4 {[%clk 0:00:44]}  Ba8 {[%clk 0:01:42]} 25. d4 {[%clk 0:00:43]}  f3 {[%clk 0:01:39]} 26. d5 {[%clk 0:00:43]}  Re2 {[%clk 0:01:35]} 27. Rxe2 {[%clk 0:00:41]}  fxe2 {[%clk 0:01:34]} 28. Re1 {[%clk 0:00:42]}  c6 {[%clk 0:01:30]} 29. dxc6 {[%clk 0:00:22]}  Bxc6 {[%clk 0:01:31]} 30. Rxe2 {[%clk 0:00:22]}  Bxa4 {[%clk 0:01:30]} 31. Re5 {[%clk 0:00:20]}  Bd7 {[%clk 0:01:28]} 32. c5 {[%clk 0:00:19]}  Be6 {[%clk 0:01:27]} 33. f4 {[%clk 0:00:15]}  Rd5 {[%clk 0:01:26]} 34. Rxd5 {[%clk 0:00:13]}  Bxd5 {[%clk 0:01:27]} 35. Kd4 {[%clk 0:00:14]}  Bc6 {[%clk 0:01:27]} 36. Ke5 {[%clk 0:00:15]}  Ke7 {[%clk 0:01:26]} 37. Kf5 {[%clk 0:00:12]}  h6 {[%clk 0:01:23]} 38. h3 {[%clk 0:00:10]}  Bd7+ {[%clk 0:01:20]} 39. Ke5 {[%clk 0:00:10]}  Bxh3 {[%clk 0:01:20]} 40. c6 {[%clk 0:00:11]}  Bc8 {[%clk 0:01:19]} 41. c7 {[%clk 0:00:11]}  h5 {[%clk 0:01:18]} 42. f5 {[%clk 0:00:11]}  f6+ {[%clk 0:01:16]} 43. Kf4 {[%clk 0:00:11]}  Kd6 {[%clk 0:01:16]} 0-1


[Site "https://www.chess.com"]

[Event "Titled Tuesday Blitz February 14 Early 2023"]
[White "Meera, Sai"]
[Black "Real_taiatai"]
[WhiteFideId "5004357"]
[WhiteElo "2064"]
[BlackElo "2349"]
[Result "0-1"]
[Round "03"]
[TimeControl "180+2"]
[Date "2023.02.15"]
[WhiteClock "0:00:52"]
[BlackClock "0:01:36"]

1. d4 {[%clk 0:03:00]}  Nf6 {[%clk 0:02:57]} 2. Nc3 {[%clk 0:03:00]}  d5 {[%clk 0:02:57]} 3. Bf4 {[%clk 0:03:00]}  c6 {[%clk 0:02:56]} 4. e3 {[%clk 0:02:59]}  Bf5 {[%clk 0:02:56]} 5. f3 {[%clk 0:02:59]}  e6 {[%clk 0:02:56]} 6. g4 {[%clk 0:02:57]}  Bg6 {[%clk 0:02:56]} 7. h4 {[%clk 0:02:58]}  h6 {[%clk 0:02:54]} 8. Qd2 {[%clk 0:02:50]}  Nbd7 {[%clk 0:02:53]} 9. O-O-O {[%clk 0:02:50]}  b5 {[%clk 0:02:52]} 10. Bd3 {[%clk 0:02:49]}  Bxd3 {[%clk 0:02:49]} 11. Qxd3 {[%clk 0:02:49]}  Nb6 {[%clk 0:02:49]} 12. Nh3 {[%clk 0:02:38]}  a5 {[%clk 0:02:47]} 13. e4 {[%clk 0:02:37]}  b4 {[%clk 0:02:48]} 14. Ne2 {[%clk 0:02:36]}  a4 {[%clk 0:02:47]} 15. Kb1 {[%clk 0:02:36]}  Nc4 {[%clk 0:02:38]} 16. e5 {[%clk 0:02:21]}  Nd7 {[%clk 0:02:38]} 17. g5 {[%clk 0:02:21]}  a3 {[%clk 0:02:16]} 18. b3 {[%clk 0:02:19]}  Nb2 {[%clk 0:02:16]} 19. Qd2 {[%clk 0:02:17]}  Nxd1 {[%clk 0:02:16]} 20. Rxd1 {[%clk 0:02:17]}  hxg5 {[%clk 0:02:11]} 21. Bxg5 {[%clk 0:02:11]}  Be7 {[%clk 0:02:05]} 22. Rg1 {[%clk 0:02:11]}  Bxg5 {[%clk 0:02:05]} 23. Rxg5 {[%clk 0:02:06]}  Rxh4 {[%clk 0:02:03]} 24. Nef4 {[%clk 0:01:51]}  Qxg5 {[%clk 0:01:53]} 25. Nxg5 {[%clk 0:01:42]}  Rh1+ {[%clk 0:01:53]} 26. Qc1 {[%clk 0:01:42]}  Rxc1+ {[%clk 0:01:53]} 27. Kxc1 {[%clk 0:01:43]}  Ke7 {[%clk 0:01:51]} 28. Nd3 {[%clk 0:01:43]}  Rb8 {[%clk 0:01:47]} 29. Kd2 {[%clk 0:01:43]}  f6 {[%clk 0:01:47]} 30. exf6+ {[%clk 0:01:40]}  gxf6 {[%clk 0:01:48]} 31. Nh3 {[%clk 0:01:40]}  Kd6 {[%clk 0:01:48]} 32. f4 {[%clk 0:01:40]}  c5 {[%clk 0:01:48]} 33. Ng1 {[%clk 0:01:33]}  cxd4 {[%clk 0:01:46]} 34. Nf3 {[%clk 0:01:34]}  e5 {[%clk 0:01:46]} 35. Nh4 {[%clk 0:01:32]}  Ke6 {[%clk 0:01:41]} 36. f5+ {[%clk 0:01:32]}  Kd6 {[%clk 0:01:41]} 37. Ng6 {[%clk 0:01:30]}  Nc5 {[%clk 0:01:36]} 38. Nf2 {[%clk 0:00:54]}  Ne4+ {[%clk 0:01:35]} 39. Nxe4+ {[%clk 0:00:52]}  dxe4 {[%clk 0:01:36]} 0-1


[Site "https://www.chess.com"]

[Event "Titled Tuesday Blitz February 14 Early 2023"]
[White "Kulkarni, Vikramaditya"]
[Black "Sabar, Ethmane Daouda"]
[WhiteFideId "5009847"]
[BlackFideId "19600097"]
[WhiteElo "2251"]
[BlackElo "2040"]
[Result "1-0"]
[Round "03"]
[TimeControl "180+2"]
[Date "2023.02.15"]
[WhiteClock "0:00:35"]
[BlackClock "0:00:13"]

1. d4 {[%clk 0:03:00]}  d5 {[%clk 0:02:59]} 2. c4 {[%clk 0:02:59]}  e5 {[%clk 0:02:57]} 3. dxe5 {[%clk 0:02:57]}  d4 {[%clk 0:02:58]} 4. Nf3 {[%clk 0:02:56]}  Nc6 {[%clk 0:02:58]} 5. a3 {[%clk 0:02:57]}  Bg4 {[%clk 0:02:58]} 6. Nbd2 {[%clk 0:02:54]}  Qe7 {[%clk 0:02:58]} 7. h3 {[%clk 0:02:35]}  Bh5 {[%clk 0:02:56]} 8. g4 {[%clk 0:02:32]}  Bg6 {[%clk 0:02:55]} 9. Bg2 {[%clk 0:02:30]}  O-O-O {[%clk 0:02:55]} 10. O-O {[%clk 0:02:26]}  Nxe5 {[%clk 0:02:40]} 11. Nxe5 {[%clk 0:02:25]}  Qxe5 {[%clk 0:02:41]} 12. f4 {[%clk 0:02:24]}  Qe3+ {[%clk 0:02:39]} 13. Kh2 {[%clk 0:02:19]}  h5 {[%clk 0:02:08]} 14. Ne4 {[%clk 0:02:03]}  Bxe4 {[%clk 0:01:41]} 15. Bxe3 {[%clk 0:01:59]}  dxe3 {[%clk 0:01:42]} 16. Bxe4 {[%clk 0:01:42]}  Rxd1 {[%clk 0:01:41]} 17. Raxd1 {[%clk 0:01:37]}  c6 {[%clk 0:01:21]} 18. g5 {[%clk 0:01:34]}  Kc7 {[%clk 0:01:17]} 19. Bf5 {[%clk 0:01:28]}  g6 {[%clk 0:01:06]} 20. Rd7+ {[%clk 0:01:25]}  Kb6 {[%clk 0:01:06]} 21. Rxf7 {[%clk 0:01:14]}  Ne7 {[%clk 0:00:38]} 22. Be4 {[%clk 0:01:10]}  a5 {[%clk 0:00:36]} 23. b4 {[%clk 0:01:08]}  axb4 {[%clk 0:00:35]} 24. axb4 {[%clk 0:01:08]}  c5 {[%clk 0:00:35]} 25. Rb1 {[%clk 0:01:04]}  cxb4 {[%clk 0:00:34]} 26. Rxb4+ {[%clk 0:01:03]}  Kc5 {[%clk 0:00:35]} 27. Rxb7 {[%clk 0:01:03]}  Kxc4 {[%clk 0:00:25]} 28. Rb8 {[%clk 0:00:57]}  Nf5 {[%clk 0:00:13]} 29. Bxf5 {[%clk 0:00:54]}  gxf5 {[%clk 0:00:14]} 30. Rbxf8 {[%clk 0:00:53]}  Rxf8 {[%clk 0:00:13]} 31. Rxf8 {[%clk 0:00:53]}  Kd4 {[%clk 0:00:14]} 32. g6 {[%clk 0:00:52]}  Ke4 {[%clk 0:00:15]} 33. g7 {[%clk 0:00:51]}  Kxf4 {[%clk 0:00:16]} 34. g8=Q {[%clk 0:00:49]}  h4 {[%clk 0:00:17]} 35. Qg6 {[%clk 0:00:36]}  Ke4 {[%clk 0:00:13]} 36. Qxf5+ {[%clk 0:00:36]}  Kd4 {[%clk 0:00:13]} 37. Qd3+ {[%clk 0:00:35]} 1-0


[Site "https://www.chess.com"]